bitfinex-derivatives/quotes_ETHF0:USTF0_20251008
["timestamp","ask_amount","ask_price","bid_price","bid_amount"]
[1759915015460,5.49503996,4479.7,4479.5,3.60946]
[1759915015660,1.7646,4479.5,4479.4,0.40167]
[1759915015961,2.7801,4479.5,4479.4,0.40167]
[1759915017460,1.0155,4479.4,4479.0,3.2078]
[1759915017666,8.32099192,4479.5,4479.0,3.60951]
[1759915017667,2.387,4479.1,4479.0,3.60951]
[1759915018667,2.387,4479.1,4479.0,4.28801]
[1759915019364,2.387,4479.1,4479.0,3.2078]
[1759915019566,5.33428437,4479.1,4479.0,3.2078]
[1759915019770,5.33428437,4479.1,4479.0,5.6207]
[1759915020559,0.224,4479.3,4479.0,5.6207]
[1759915020763,1.2395,4479.3,4479.2,2.4129]
[1759915021165,0.224,4479.3,4479.2,2.4129]
[1759915021567,2.611,4479.3,4479.2,1.3783]
[1759915021965,2.387,4479.2,4479.1,0.4017]
[1759915022372,2.387,4479.2,4479.1,1.0802]
[1759915023272,2.387,4479.2,4479.1,1.78]
[1759915023875,2.387,4479.2,4479.0,3.2078]
[1759915024074,0.224,4479.3,4479.0,3.2078]
[1759915024075,2.387,4479.1,4479.0,3.2078]
[1759915024767,5.24875969,4479.1,4479.0,3.2078]
[1759915025679,5.47275969,4479.1,4479.0,3.2078]
[1759915031179,5.47275969,4479.1,4479.0,3.8863]
[1759915033875,5.47275969,4479.1,4479.0,3.2078]
[1759915035776,0.3931,4479.0,4478.9,0.40172]
[1759915035983,2.7801,4479.0,4478.9,0.40172]
[1759915037783,1.7646,4479.0,4478.6,3.2078]
[1759915037990,2.2922,4478.7,4478.6,3.879]
[1759915038189,2.5162,4478.7,4478.6,3.879]
[1759915038588,1.8337,4478.7,4478.6,5.4627]
[1759915039089,2.5162,4478.7,4478.6,4.5067]
[1759915040886,2.5162,4478.7,4478.6,5.4627]
[1759915041092,1.8337,4478.7,4478.6,5.4627]
[1759915041889,2.5162,4478.7,4478.6,4.5067]
[1759915042691,0.9641,4479.9,4479.7,0.6712]
[1759915042988,3.88987502,4479.8,4479.7,2.0873]
[1759915043190,0.22564957,4479.8,4479.7,2.0873]
[1759915043494,0.22564957,4479.8,4479.7,42.8873]
[1759915046196,1.18974957,4479.8,4479.7,42.8873]
[1759915050101,0.22564957,4479.8,4479.7,42.8873]
[1759915050795,0.00164957,4479.8,4479.7,42.8873]
[1759915053401,1.3661,4480.5,4480.4,2.48888]
[1759915053706,2.0117,4480.5,4480.4,2.48888]
[1759915054405,2.01326296,4480.5,4480.4,2.48888]
[1759915055309,0.00156296,4480.5,4480.4,2.48888]
[1759915056711,2.01746296,4480.5,4480.4,42.50048]
[1759915057009,2.01746296,4480.5,4480.4,43.28888]
[1759915057711,0.96566296,4480.5,4480.4,43.28888]
[1759915058215,0.00156296,4480.5,4480.4,43.28888]
[1759915059115,0.96566296,4480.5,4480.4,43.28888]
[1759915060306,1.37186296,4480.5,4480.4,42.0989]
[1759915060507,2.71056296,4480.5,4480.2,0.40159]
[1759915061007,0.9398,4480.4,4480.2,41.20159]
[1759915061310,2.2785,4480.3,4480.2,1.07899]
[1759915061714,2.2785,4480.3,4480.2,1.3223]
[1759915064326,2.2785,4479.9,4479.8,0.40163]
[1759915064727,2.2785,4479.9,4479.8,1.07903]
[1759915065323,2.2785,4479.9,4479.8,1.07904]
[1759915066726,2.2785,4479.9,4479.7,3.2078]
[1759915066727,0.3724,4479.5,4479.2,3.2078]
[1759915067029,0.3724,4479.5,4478.5,1.00438]
[1759915067030,2.1973,4478.7,4478.6,3.8744]
[1759915067229,2.1973,4478.7,4478.6,44.6744]
[1759915068531,2.1973,4478.7,4478.6,41.4666]
[1759915068824,2.1973,4478.7,4478.6,0.6666]
[1759915069031,1.9372,4478.5,4478.4,0.6666]
[1759915069231,2.1973,4478.2,4478.1,3.2078]
[1759915069426,2.4213,4478.2,4478.1,3.2078]
[1759915069633,1.6342,4478.0,4477.9,0.02456323]
[1759915069832,2.5697,4478.0,4477.9,0.02456323]
[1759915070027,5.46097306,4478.0,4477.9,0.02456323]
[1759915070229,5.86277306,4478.0,4477.9,0.02456323]
[1759915070735,5.46097306,4478.0,4477.9,0.02456323]
[1759915071827,8.66877306,4478.0,4477.9,0.02456323]
[1759915072429,5.46097306,4478.0,4477.9,0.02456323]
[1759915072933,8.66877306,4478.0,4477.9,0.02456323]
[1759915073126,8.66877306,4478.0,4477.0,3.2078]
[1759915073127,0.3724,4477.5,4477.0,3.2078]
[1759915073330,2.1973,4477.1,4477.0,3.2078]
[1759915073628,2.4213,4477.1,4477.0,3.2078]
[1759915074241,2.42382558,4477.1,4477.0,3.21058193]
[1759915075435,2.42382558,4477.1,4477.0,0.00278193]
[1759915078438,5.33314067,4477.1,4477.0,0.00278193]
[1759915092437,5.10914067,4477.1,4477.0,0.66938193]
[1759915092645,5.33314067,4477.1,4477.0,1.35138193]
[1759915093546,5.33314067,4477.1,4477.0,2.10718193]
[1759915094948,1.16202558,4477.1,4477.0,2.10718193]
[1759915095447,2.42382558,4477.1,4477.0,1.35138193]
[1759915095938,0.00252558,4477.1,4477.0,5.31498193]
[1759915096140,0.15352558,4477.1,4477.0,5.31498193]
[1759915097643,0.15352558,4477.1,4477.0,46.11498193]
[1759915097838,1.11372558,4477.1,4477.0,46.11498193]
[1759915098042,0.15352558,4477.1,4477.0,46.11498193]
[1759915098747,0.96272558,4477.1,4477.0,46.11498193]
[1759915100043,2.19042558,4477.1,4477.0,0.00278193]
[1759915100438,2.19042558,4477.1,4477.0,0.67328193]
[1759915100657,0.96272558,4477.1,4477.0,2.04278193]
[1759915100951,1.18672558,4477.1,4477.0,2.04278193]
[1759915101751,1.79412558,4477.1,4477.0,2.04278193]
[1759915101942,2.41442558,4477.1,4477.0,1.32068193]
[1759915102644,0.22652558,4477.1,4477.0,2.04278193]
[1759915103746,0.9602,4477.7,4477.6,2.44183]
[1759915103948,0.9602,4477.7,4477.6,5.64963]
[1759915104548,1.5676,4477.7,4477.6,5.64963]
[1759915104750,0.96278559,4477.7,4477.6,5.64963]
[1759915105048,1.57018559,4477.7,4477.6,5.64963]
[1759915106352,2.19048559,4477.7,4477.6,4.5257]
[1759915106652,2.1879,4477.2,4477.1,1.71978]
[1759915107651,1.5676,4477.2,4477.1,2.44188]
[1759915107845,0.9602,4477.2,4477.1,2.44188]
[1759915108045,0.224,4477.3,4477.1,1.71978]
[1759915108346,0.00258559,4477.7,4477.6,2.04]
[1759915108649,0.00258559,4477.7,4477.6,5.2478]
[1759915108850,1.57018559,4477.7,4477.6,4.5257]
[1759915109058,2.19048559,4477.7,4477.6,4.5257]
[1759915109647,2.19048559,4477.7,4477.6,3.8783]
[1759915110448,5.07928567,4477.7,4477.6,3.2078]
[1759915111454,5.30328567,4477.7,4477.6,3.8783]
[1759915111653,5.30328567,4477.7,4477.6,4.5257]
[1759915115059,5.30328567,4477.7,4477.6,3.8783]
[1759915115652,5.30328567,4477.7,4477.6,3.2078]
[1759915116853,5.30328567,4477.7,4477.6,3.8783]
[1759915117248,5.30328567,4477.7,4477.6,4.5257]
[1759915118752,5.30328567,4477.7,4477.6,3.8783]
[1759915118959,5.30328567,4477.7,4477.6,4.5257]
[1759915119363,5.30328567,4477.7,4477.6,5.2478]
[1759915119658,5.30328567,4477.7,4477.6,4.5257]
[1759915120759,5.07928567,4477.7,4477.6,4.5257]
[1759915120958,0.9828,4478.3,4478.2,1.9451]
[1759915121261,0.9828,4478.3,4478.2,4.4575]
[1759915121262,2.2143,4478.3,4478.2,4.4575]
[1759915121959,2.21625033,4478.3,4478.2,4.4575]
[1759915123059,5.05461034,4478.3,4478.2,3.2078]
[1759915123266,2.2143,4477.7,4477.6,3.8462]
[1759915123660,2.2143,4477.7,4477.6,45.65933]
[1759915124366,2.2143,4477.7,4477.6,46.35473]
[1759915126269,2.2143,4477.7,4477.6,5.55473]
[1759915127260,2.2143,4477.7,4477.6,4.85933]
[1759915127765,2.2143,4477.7,4477.6,5.54943]
[1759915127766,1.5843,4477.7,4477.6,5.54943]
[1759915133268,1.5843,4477.7,4477.6,7.15383528]
[1759915133767,0.9828,4477.7,4477.6,7.15383528]
[1759915134463,1.1376,4477.8,4477.7,0.6901]
[1759915134669,1.1376,4477.8,4477.7,1.9607]
[1759915134974,0.224,4477.8,4477.7,1.9607]
[1759915135172,1.1376,4478.2,4478.1,1.67239]
[1759915135463,1.1376,4478.2,4478.1,4.88019]
[1759915135670,1.1376,4478.2,4478.1,5.57029]
[1759915135864,1.7391,4478.2,4478.1,5.57029]
[1759915136264,1.1376,4478.2,4478.1,5.57029]
[1759915137163,1.7391,4478.2,4478.1,5.57029]
[1759915140067,1.1376,4478.2,4478.1,5.57029]
[1759915140371,1.7391,4478.2,4478.1,5.57029]
[1759915140574,0.224,4478.2,4478.1,5.57029]
[1759915141568,2.3563,4478.2,4478.1,3.8588]
[1759915143768,2.3563,4478.2,4478.0,0.4018]
[1759915143769,5.26110301,4478.2,4478.0,0.4018]
[1759915143976,2.1323,4477.7,4477.6,4.26063]
[1759915146874,2.1323,4477.7,4477.6,4.88023]
[1759915147777,0.9136,4477.7,4477.6,5.57033]
[1759915149675,1.7391,4477.8,4477.7,1.9607]
[1759915150373,1.1376,4477.8,4477.7,1.9607]
[1759915150974,0.224,4477.8,4477.7,1.9607]
[1759915151777,0.91555033,4478.3,4478.2,2.36248]
[1759915151978,0.91555033,4478.3,4478.2,5.57028]
[1759915152277,2.13425033,4478.3,4478.2,4.88018]
[1759915152579,2.13425033,4478.3,4478.2,5.57028]
[1759915154472,1.51705033,4478.3,4478.2,5.57028]
[1759915154673,0.91555033,4478.3,4478.2,5.57028]
[1759915155481,0.00195033,4478.3,4478.2,5.57028]
[1759915155879,1.51705033,4478.3,4478.2,5.57028]
[1759915156381,0.00195033,4478.3,4478.2,5.57028]
[1759915156882,0.00195033,4478.3,4478.2,5.97386111]
[1759915157072,0.224,4478.7,4478.6,1.61854]
[1759915157381,0.224,4478.7,4478.6,2.27574]
[1759915157979,0.2262763,4478.7,4478.6,2.27574]
[1759915158176,0.9521,4479.4,4479.3,1.2168]
[1759915158382,1.544,4479.4,4479.3,1.874]
[1759915158781,1.544,4479.4,4479.3,1.2168]
[1759915159277,1.54651064,4479.4,4479.3,1.2168]
[1759915160479,2.14161064,4479.4,4479.0,3.2078]
[1759915160783,2.14161064,4479.4,4478.9,40.8]
[1759915160784,2.5223,4479.0,4478.9,40.8]
[1759915160984,2.7463,4479.0,4478.9,40.8]
[1759915161182,2.7463,4479.0,4478.9,1.2168]
[1759915161484,2.7463,4479.0,4478.9,1.874]
[1759915161981,1.1761,4479.0,4478.9,1.874]
[1759915162380,0.224,4479.0,4478.9,1.874]
[1759915163183,0.74423591,4479.0,4478.9,1.874]
[1759915163889,1.69633591,4479.0,4478.9,1.874]
[1759915165685,0.52023591,4479.0,4478.9,1.874]
[1759915168486,0.52023591,4479.0,4478.9,2.098]
[1759915168788,1.47233591,4479.0,4478.9,1.874]
[1759915168985,1.47233591,4479.0,4478.9,2.098]
[1759915169186,0.52023591,4479.0,4478.9,2.098]
[1759915169387,0.52023591,4479.0,4478.9,1.874]
[1759915170491,1.47233591,4479.0,4478.9,1.874]
[1759915171093,3.04253591,4479.0,4478.9,1.2168]
[1759915172997,2.5223,4479.0,4478.9,1.2168]
[1759915173296,2.7463,4479.0,4478.9,1.2168]
[1759915174096,0.9521,4478.8,4478.5,40.8]
[1759915174286,2.1391,4478.6,4478.5,40.8]
[1759915174485,0.9521,4478.6,4478.5,41.85895]
[1759915175288,1.3353,4479.0,4478.9,1.2168]
[1759915175492,1.5593,4479.0,4478.9,1.874]
[1759915175698,4.48118679,4479.0,4478.9,1.874]
[1759915175991,3.87398679,4479.0,4478.9,1.874]
[1759915176302,0.00251064,4479.4,4479.3,2.27568]
[1759915176495,0.22651064,4479.4,4479.3,2.27568]
[1759915177799,1.17861064,4479.4,4479.3,1.874]
[1759915182004,1.77051064,4479.4,4479.3,1.874]
[1759915182602,2.14021064,4479.4,4479.3,1.2168]
[1759915182793,0.8734,4479.3,4479.2,3.2078]
[1759915183104,2.0854,4479.3,4479.2,4.4596]
[1759915183291,2.0854,4479.3,4479.2,5.091]
[1759915183498,0.8734,4479.3,4479.2,5.091]
[1759915186701,1.4917,4479.3,4479.2,5.091]
[1759915187200,1.4917,4479.3,4479.2,4.4596]
[1759915187394,2.0953,4479.3,4479.2,1.2518]
[1759915190607,0.3459,4479.0,4478.9,1.1965]
[1759915190910,0.9793,4479.0,4478.9,1.8215]
[1759915191204,1.8949,4479.0,4478.9,1.8215]
[1759915191412,2.1189,4479.0,4478.9,1.8215]
[1759915194518,1.4855,4479.0,4478.9,1.8215]
[1759915194817,2.1189,4479.0,4478.9,1.8215]
[1759915195813,2.7225,4479.0,4478.9,1.1965]
[1759915197321,2.7225,4479.0,4478.9,0.5947]
[1759915200321,2.7225,4479.0,4478.9,1.1965]
[1759915200622,2.7225,4479.0,4478.9,1.8215]
[1759915201023,2.1189,4479.0,4478.9,1.8215]
[1759915201425,0.91811064,4479.4,4479.3,1.8215]
[1759915201823,1.14211064,4479.4,4479.3,1.8215]
[1759915202818,2.37911064,4479.4,4479.3,1.1965]
[1759915203325,2.1526,4479.3,4479.2,3.2078]
[1759915203925,2.1526,4479.3,4479.2,3.8025]
[1759915205126,0.3459,4479.0,4478.8,6.977177]
[1759915205428,1.5829,4479.0,4478.9,0.99641]
[1759915205623,1.8069,4479.0,4478.9,0.99641]
[1759915205823,2.7225,4479.0,4478.9,0.99641]
[1759915206623,2.1189,4479.0,4478.9,2.22321]
[1759915206828,0.9156,4479.0,4478.9,2.22321]
[1759915207219,1.1396,4479.0,4478.9,2.22321]
[1759915207415,0.00251064,4479.4,4479.2,2.22319]
[1759915207623,0.00251064,4479.4,4479.3,1.8215]
[1759915207824,0.22651064,4479.4,4479.3,1.8215]
[1759915208020,1.14211064,4479.4,4479.3,1.8215]
[1759915208215,0.91811064,4479.4,4479.3,1.8215]
[1759915208526,1.14211064,4479.4,4479.3,1.8215]
[1759915209427,2.37911064,4479.4,4479.3,1.1965]
[1759915209625,2.15511064,4479.4,4479.3,1.1965]
[1759915209927,2.37911064,4479.4,4479.3,0.5947]
[1759915210429,2.37911064,4479.4,4479.3,1.1965]
[1759915212230,2.37911064,4479.4,4479.3,1.8215]
[1759915213130,2.89912515,4479.4,4479.3,1.8215]
[1759915213432,1.66212515,4479.4,4479.3,1.8215]
[1759915213929,2.29552515,4479.4,4479.3,1.8215]
[1759915214829,2.07152515,4479.4,4479.3,1.8215]
[1759915215032,2.29552515,4479.4,4479.3,1.8215]
[1759915215927,1.66212515,4479.4,4479.3,1.8215]
[1759915217122,2.90532515,4479.4,4479.3,1.1965]
[1759915223135,2.38531064,4479.4,4479.3,1.1965]
[1759915228028,2.38531064,4479.4,4479.3,1.7897]
[1759915228225,0.9196,4479.8,4479.3,1.59739]
[1759915228428,4.8037,4480.5,4480.4,1.5409]
[1759915228631,5.54677434,4480.5,4480.4,1.5409]
[1759915228833,8.50018142,4480.5,4480.4,0.5979]
[1759915229228,8.5027789,4480.5,4480.4,0.60003818]
[1759915230536,9.4223789,4480.5,4480.4,0.60003818]
[1759915231940,9.4223789,4480.5,4480.4,1.54303818]
[1759915232133,9.1983789,4480.5,4480.4,2.14093818]
[1759915232334,9.4223789,4480.5,4480.4,2.14093818]
[1759915233938,9.4223789,4480.5,4480.4,1.19793818]
[1759915234239,9.4223789,4480.5,4480.4,2.14093818]
[1759915235642,9.4223789,4480.5,4480.4,0.00213818]
[1759915238842,9.4223789,4480.5,4480.4,1.54303818]
[1759915239348,9.1983789,4480.5,4480.4,1.54303818]
[1759915239532,9.4223789,4480.5,4480.4,1.54303818]
[1759915240137,9.1983789,4480.5,4480.4,2.14093818]
[1759915240341,9.4223789,4480.5,4480.4,2.14093818]
[1759915240744,9.4223789,4480.5,4480.4,1.19793818]
[1759915241043,9.42143479,4480.5,4480.4,1.19793818]
[1759915241343,9.42143479,4480.5,4480.4,0.60003818]
[1759915241844,9.42143479,4480.5,4480.4,0.00213818]
[1759915242045,9.42143479,4480.5,4480.4,0.59303818]
[1759915242344,9.19743479,4480.5,4480.4,0.59303818]
[1759915242546,9.42143479,4480.5,4480.4,0.00213818]
[1759915246449,6.21363479,4480.5,4480.4,0.00213818]
[1759915248956,6.21363479,4480.5,4480.4,0.40371818]
[1759915250857,5.98963479,4480.5,4480.4,2.47371818]
[1759915251059,6.21363479,4480.5,4480.4,1.62061818]
[1759915251258,3.69813479,4480.5,4480.4,2.47371818]
[1759915251463,5.11023479,4480.5,4480.4,2.47371818]
[1759915251661,5.69243479,4480.5,4480.4,2.47371818]
[1759915251860,6.03433479,4480.5,4480.4,2.47371818]
[1759915253253,6.03433479,4480.5,4480.4,1.62061818]
[1759915253457,6.03433479,4480.5,4480.4,1.01151818]
[1759915254864,5.81033479,4480.5,4480.4,1.01151818]
[1759915255055,6.03433479,4480.5,4480.4,1.86461818]
[1759915255967,6.03433479,4480.5,4480.4,1.01151818]
[1759915256169,6.03444737,4480.5,4480.4,1.01151818]
[1759915257966,6.03444737,4480.5,4480.4,1.86461818]
[1759915258267,6.03444737,4480.5,4480.4,2.47371818]
[1759915259768,4.54824737,4480.5,4480.4,2.47371818]
[1759915260257,5.11034737,4480.5,4480.4,2.47371818]
[1759915261067,6.03444737,4480.5,4480.4,2.07213818]
[1759915261268,6.03444737,4480.5,4480.4,1.21903818]
[1759915261664,6.03444737,4480.5,4480.4,0.00213818]
[1759915267578,2.3362,4479.5,4479.4,0.40167]
[1759915267881,5.48910275,4479.5,4479.4,0.40167]
[1759915268566,5.48910275,4479.5,4479.4,0.40338907]
[1759915268872,5.26510275,4479.5,4479.4,1.86428907]
[1759915269072,5.48910275,4479.5,4479.4,2.47338907]
[1759915269573,4.56500275,4479.5,4479.4,2.47338907]
[1759915270078,4.34100275,4479.5,4479.4,2.47338907]
[1759915270279,4.56500275,4479.5,4479.4,2.47338907]
[1759915270680,4.56500275,4479.5,4479.4,2.07171907]
[1759915271073,4.34100275,4479.5,4479.4,2.07171907]
[1759915271274,4.56500275,4479.5,4479.4,2.07171907]
[1759915271769,5.48910275,4479.5,4479.4,0.60951907]
[1759915271974,5.48910275,4479.5,4479.4,0.00171907]
[1759915273084,1.9943,4478.7,4478.6,3.8156]
[1759915273278,2.2183,4478.7,4478.6,5.2778]
[1759915273976,2.2183,4478.7,4478.6,5.27994162]
[1759915277480,2.2183,4478.7,4478.6,4.42684162]
[1759915278181,2.2183,4478.7,4478.6,5.29964162]
[1759915278376,2.2183,4478.7,4478.6,3.81774162]
[1759915279079,5.07639001,4478.7,4478.6,3.20994162]
[1759915279981,5.07639001,4478.7,4478.6,3.79934162]
[1759915280183,5.07639001,4478.7,4478.6,4.67214162]
[1759915280478,5.07639001,4478.7,4478.6,3.79934162]
[1759915280679,5.07639001,4478.7,4478.6,0.59154162]
[1759915285683,5.07639001,4478.7,4478.6,2.07004162]
[1759915285684,0.5621,4478.7,4478.6,2.07004162]
[1759915285984,0.895,4478.9,4478.7,0.40174]
[1759915286183,1.4824,4478.9,4478.8,2.0679]
[1759915286382,4.57567948,4478.9,4478.8,2.0679]
[1759915286582,4.35167948,4478.9,4478.8,2.0679]
[1759915286784,4.57567948,4478.9,4478.8,2.0679]
[1759915287589,5.12917948,4478.9,4478.8,2.0679]
[1759915288581,5.12917948,4478.9,4478.8,0.5894]
[1759915288883,5.53089948,4478.9,4478.6,0.00214162]
[1759915289089,5.53089948,4478.9,4478.6,0.40388162]
[1759915289588,2.0359,4478.7,4478.6,0.00214162]
[1759915289786,2.2599,4478.7,4478.6,0.00214162]
[1759915289986,5.196095,4478.7,4478.6,0.00214162]
[1759915290183,8.403895,4478.7,4478.6,0.00214162]
[1759915290785,2.0359,4478.2,4477.9,0.4018]
[1759915290991,2.3843,4478.0,4477.9,0.4018]
[1759915291386,5.22559882,4478.0,4477.9,0.4018]
[1759915291894,5.22559882,4478.0,4477.9,0.40336442]
[1759915292988,5.22559882,4478.0,4477.9,0.99276442]
[1759915293188,5.22559882,4478.0,4477.9,2.47126442]
[1759915293688,1.7064,4478.0,4477.9,2.47126442]
[1759915293898,0.224,4478.0,4477.9,2.47126442]
[1759915296091,1.4824,4478.3,4478.2,2.46968]
[1759915296297,1.7064,4478.3,4478.2,2.46968]
[1759915296894,1.4824,4478.3,4478.2,2.46968]
[1759915297091,2.2599,4478.3,4478.2,2.46968]
[1759915297998,2.2599,4478.3,4478.2,2.0679]
[1759915298500,2.2599,4478.3,4478.2,1.1951]
[1759915298800,2.2599,4478.3,4478.2,2.0679]
[1759915299194,2.2599,4478.3,4478.2,1.1951]
[1759915299394,0.224,4478.3,4478.2,2.0679]
[1759915299600,1.7064,4478.3,4478.2,2.0679]
[1759915299898,1.1409,4478.7,4478.6,1.1951]
[1759915300099,2.2599,4478.7,4478.6,2.46964]
[1759915300302,5.09739205,4478.7,4478.6,2.46964]
[1759915301499,5.09739205,4478.7,4478.6,0.99114]
[1759915301694,5.09739205,4478.7,4478.6,0.40174]
[1759915301893,1.9939,4478.2,4478.1,3.60959]
[1759915302099,0.224,4478.2,4478.1,5.65359]
[1759915302599,1.0679,4478.2,4478.1,5.65359]
[1759915302996,0.9116,4478.0,4477.9,0.40337442]
[1759915303199,2.5605,4478.0,4477.9,2.44737442]
[1759915305002,0.224,4478.0,4477.9,2.44737442]
[1759915306098,1.4129,4478.5,4478.4,1.56716]
[1759915306301,1.4129,4478.5,4478.4,2.44576]
[1759915306302,1.6369,4478.5,4478.4,2.44576]
[1759915306599,2.2179,4478.5,4478.4,2.44576]
[1759915307400,2.5681,4478.5,4478.4,2.44576]
[1759915307599,1.9939,4478.5,4478.4,2.44576]
[1759915307808,2.2179,4478.5,4478.4,2.44576]
[1759915308408,1.6369,4478.5,4478.4,2.44576]
[1759915310308,0.224,4478.5,4478.4,2.44576]
[1759915310908,1.0907,4478.5,4478.4,2.44576]
[1759915311211,1.0907,4478.5,4478.1,3.2078]
[1759915311212,1.1456,4479.0,4478.9,2.42352]
[1759915311411,1.3696,4479.0,4478.9,2.42352]
[1759915311613,2.2363,4479.0,4478.9,2.42352]
[1759915312117,2.5865,4479.0,4478.9,2.0218]
[1759915316412,2.0123,4479.0,4478.9,2.0218]
[1759915316612,2.0123,4479.4,4479.3,0.5622]
[1759915316816,2.53052066,4479.4,4479.3,1.1515]
[1759915317012,5.59442697,4479.4,4479.3,0.5893]
[1759915317609,5.99610697,4479.4,4479.2,0.40169]
[1759915317811,2.53052066,4479.3,4479.2,0.40169]
[1759915318116,5.4961233,4479.3,4479.2,0.40169]
[1759915318320,5.4961233,4479.3,4479.2,0.99099]
[1759915318815,5.4961233,4479.3,4479.2,0.5893]
[1759915319618,5.7201233,4479.3,4479.2,0.5893]
[1759915320311,5.7201233,4479.3,4479.2,1.4596]
[1759915321614,5.4961233,4479.3,4479.2,2.0218]
[1759915321814,5.7201233,4479.3,4479.2,2.0218]
[1759915323526,5.7201233,4479.3,4479.2,0.5893]
[1759915324527,2.0123,4478.6,4478.5,5.2296]
[1759915324723,1.0907,4478.6,4478.5,5.63135]
[1759915324932,0.224,4478.6,4478.5,5.97255]
[1759915325830,1.0907,4478.6,4478.5,5.97255]
[1759915326030,2.2363,4478.6,4478.5,4.3593]
[1759915326229,1.1456,4478.3,4478.2,1.4596]
[1759915326429,2.2363,4478.3,4478.2,1.4596]
[1759915326633,2.2363,4478.3,4478.2,42.8218]
[1759915328930,2.2363,4478.3,4478.2,1.1515]
[1759915329124,2.2363,4478.3,4478.2,2.0218]
[1759915329930,2.2363,4478.3,4478.2,1.1515]
[1759915332427,2.2363,4478.3,4478.2,0.5893]
[1759915335633,1.6187,4478.0,4477.9,0.00156442]
[1759915335838,2.9883,4478.0,4477.9,0.00156442]
[1759915336034,6.38412568,4478.0,4477.9,0.00156442]
[1759915336434,0.40187,4477.3,4477.1,0.8703]
[1759915336635,1.49367,4477.3,4477.2,0.5893]
[1759915336843,1.71767,4477.3,4477.2,0.5893]
[1759915337134,0.40188,4477.1,4477.0,0.5613]
[1759915337338,2.58058,4477.1,4477.0,0.5613]
[1759915337637,5.53392214,4477.1,4477.0,0.00211108]
[1759915340041,5.13204214,4477.1,4477.0,0.40400108]
[1759915340242,5.13204214,4477.1,4477.0,0.96530108]
[1759915340941,5.13204214,4477.1,4477.0,0.56341108]
[1759915341439,5.13204214,4477.1,4477.0,0.00211108]
[1759915342241,5.13204214,4477.1,4477.0,0.56341108]
[1759915343337,4.90804214,4477.1,4477.0,0.56341108]
[1759915343643,5.13204214,4477.1,4477.0,2.03461108]
[1759915343843,0.00215746,4477.1,4477.0,2.38181108]
[1759915344039,0.22615746,4477.1,4477.0,2.38181108]
[1759915344543,0.22615746,4477.1,4477.0,7.38181108]
[1759915345240,1.4192,4477.9,4477.8,1.1488]
[1759915345543,1.4192,4477.9,4477.8,2.0325]
[1759915345742,1.6432,4477.9,4477.8,2.0325]
[1759915345934,1.4192,4477.9,4477.8,2.0325]
[1759915346337,0.00180535,4477.9,4477.8,2.43432]
[1759915346545,0.22580535,4477.9,4477.8,2.43432]
[1759915352146,0.00180535,4477.9,4477.8,2.43432]
[1759915354547,0.86470535,4477.9,4477.8,2.43432]
[1759915356243,1.95650535,4477.9,4477.8,2.43432]
[1759915356551,1.95650535,4477.9,4477.8,2.0325]
[1759915356852,1.95650535,4477.9,4477.8,1.1488]
[1759915357048,1.9547,4477.8,4477.7,5.371]
[1759915357352,0.8629,4477.7,4477.5,1.28554]
[1759915357544,1.9547,4477.7,4477.6,0.5613]
[1759915358642,0.40187,4477.3,4477.0,0.00211108]
[1759915358944,1.9547,4477.1,4477.0,0.56341108]
[1759915359351,1.9547,4477.1,4477.0,2.03461108]
[1759915360943,0.8043,4477.4,4477.3,1.49666]
[1759915361143,1.5541,4477.4,4477.3,2.36796]
[1759915361342,4.47109335,4477.4,4477.3,2.36796]
[1759915361848,5.01059335,4477.4,4477.3,2.36796]
[1759915362251,1.5541,4477.4,4477.3,2.36796]
[1759915363754,1.3301,4477.4,4477.3,2.36796]
[1759915364053,1.5541,4477.4,4477.3,2.36796]
[1759915365357,2.0936,4477.4,4477.1,0.40188]
[1759915365748,1.2893,4477.3,4477.2,0.94677]
[1759915365948,2.0936,4477.3,4477.2,1.81807]
[1759915366148,2.0936,4477.3,4477.2,2.36797]
[1759915367048,0.8497,4477.8,4477.3,0.8294]
[1759915367249,1.3918,4477.8,4477.7,1.9606]
[1759915367553,2.1432,4477.8,4477.7,1.9606]
[1759915371359,0.00180535,4477.9,4477.5,3.2078]
[1759915371360,0.00180535,4477.9,4477.8,2.36242]
[1759915371548,0.22580535,4477.9,4477.8,2.36242]
[1759915372564,0.8497,4478.7,4478.6,1.9606]
[1759915372862,1.6158,4478.7,4478.6,1.9606]
[1759915373459,0.5421,4479.0,4478.9,2.36232]
[1759915373659,0.7688149,4479.0,4478.9,2.54487075]
[1759915373857,3.63638902,4479.0,4478.9,2.54487075]
[1759915374059,4.48608902,4479.0,4478.9,1.9606]
[1759915376251,3.2078,4479.6,4478.9,1.9606]
[1759915376455,3.2078,4479.6,4479.5,2.70476]
[1759915376652,1.3918,4480.0,4479.9,2.36223]
[1759915376850,1.6158,4480.0,4479.9,2.36223]
[1759915377054,4.52328412,4480.0,4479.9,2.36223]
[1759915377460,4.52522673,4480.0,4479.9,2.36223]
[1759915377660,5.05262673,4480.0,4479.9,2.36223]
[1759915378459,1.61774261,4480.0,4479.9,2.36223]
[1759915379164,0.22594261,4480.0,4479.9,2.36223]
[1759915379361,1.61774261,4480.0,4479.9,2.36223]
[1759915380561,0.22594261,4480.0,4479.9,2.36223]
[1759915380762,1.61774261,4480.0,4479.9,2.36223]
[1759915381159,0.22594261,4480.0,4479.9,2.36223]
[1759915382062,1.07564261,4480.0,4479.9,2.36223]
[1759915382262,1.61774261,4480.0,4479.9,2.36223]
[1759915382566,2.14514261,4480.0,4479.9,2.36223]
[1759915383659,1.61774261,4480.0,4479.9,2.36223]
[1759915383860,0.22594261,4480.0,4479.9,2.36223]
[1759915384061,1.61774261,4480.0,4479.9,2.36223]
[1759915385869,0.00194261,4480.0,4479.9,2.36223]
[1759915387566,1.39374261,4480.0,4479.9,2.36223]
[1759915387762,2.25154261,4480.0,4479.9,2.36223]
[1759915388071,1.92114261,4480.0,4479.9,2.36223]
[1759915388769,1.39374261,4480.0,4479.9,2.36223]
[1759915388965,0.00194261,4480.0,4479.9,2.36223]